Cogmind - Beta 13 @@@ ROGUE MODE // 2024.07.08 @ 16:19:06 Player: GFYguy Result: Self-destructed Performance ------------- Evolutions (2) 1000 Regions Visited (4) 800 Robots Destroyed (24) 120 Value Destroyed (445) 445 Prototype IDs (5) 100 Alien Tech Used (0) 0 Bonus (206) 206 TOTAL SCORE: 2671 Bonus ------- High Alert Combat Kills 4 Follower Combat Kills 286 Friendly Fire -84 Cogmind --------- Core Integrity 463/550 Matter 262/300 Energy 198/265 System Corruption 0% Temperature Cool (0) Movement Walking (120) Location -8/Materials Parts ------- > --- POWER (1) -------- Improved Ion Engine > --- PROPULSION (5) --- Aluminum Leg Aluminum Leg Improved Aluminum Leg Improved Aluminum Leg Improved Aluminum Leg > --- UTILITY (3) ------ Cooling System High-capacity Storage Unit Light Armor Plating > --- WEAPON (2) ------- Advanced Beam Cannon > --- INVENTORY (20) --- Ion Engine Improved Ion Engine Heavy Ion Engine Heavy Ion Engine Improved Treads Improved Treads Improved Treads Improved Treads Aluminum Leg Improved Aluminum Leg Heat Sink Heat Sink Cooling System Advanced Beam Cannon Advanced Beam Cannon Advanced Beam Cannon Advanced Beam Cannon Peak State ------------ > --- POWER ------------ Ion Engine > --- PROPULSION ------- Aluminum Leg Improved Aluminum Leg Improved Aluminum Leg Improved Aluminum Leg Improved Aluminum Leg > --- UTILITY ---------- Heat Sink Cooling System High-capacity Storage Unit > --- WEAPON ----------- Advanced Beam Cannon Advanced Beam Cannon > --- INVENTORY -------- Improved Ion Engine Heavy Ion Engine Heavy Ion Engine Improved Treads Improved Treads Improved Treads Improved Treads Aluminum Leg Aluminum Leg Heat Sink Cooling System Advanced Beam Cannon Advanced Beam Cannon Advanced Beam Cannon Advanced Beam Cannon [Rating: 23] Favorites ----------- Power Ion Engine Engine Ion Engine Propulsion Improved Aluminum Leg Leg Improved Aluminum Leg Flight Unit Cooled VTOL Module Utility Heat Sink Device Heat Sink Storage High-capacity Storage Unit Protection Light Armor Plating Weapon Spread Laser Energy Gun Spread Laser Energy Cannon Advanced Beam Cannon Build | -11 -10 -9 -9 -8 ------- Run | Yrd Mat Mat Sto Mat Slots Evolved 4 | . . 2 . 2 Power . | . . . . . Propulsion 3 | . . 2 . 1 Utility 1 | . . . . 1 Weapon . | . . . . . Parts Attached 49 | 6 3 8 18 14 Power 6 | 1 . . 3 2 Engine 6 | 1 . . 3 2 Core . | . . . . . Reactor . | . . . . . Propulsion 14 | 2 . 4 3 5 Treads . | . . . . . Leg 13 | 2 . 4 2 5 Wheel . | . . . . . Hover . | . . . . . Flight 1 | . . . 1 . Utility 8 | 1 1 1 . 5 Device 5 | . 1 . . 4 Storage 2 | 1 . 1 . . Processor . | . . . . . Hackware . | . . . . . Protection 1 | . . . . 1 Artifact . | . . . . . Weapon 21 | 2 2 3 12 2 Energy Gun 17 | 2 2 3 10 . Energy Cannon 4 | . . . 2 2 Ballistic Gun . | . . . . . Ballistic Cannon . | . . . . . Launcher . | . . . . . Special Weapon . | . . . . . Impact Weapon . | . . . . . Slashing Weapon . | . . . . . Piercing Weapon . | . . . . . Special Melee Weapon . | . . . . . Unidentified Prototypes 5 | . . 1 4 . Parts Lost 1 | . . . . 1 Power . | . . . . . Propulsion . | . . . . . Utility . | . . . . . Weapon 1 | . . . . 1 Highest Loss Streak 1 | . . . . 1 To Critical Strikes . | . . . . . Average Slot Usage (%) 97 | . 87 100 99 99 Engine 11 | . 14 11 11 9 Leg 41 | . 28 44 43 45 Device 10 | . 2 11 11 13 Storage 11 | . 14 11 11 9 Energy Gun 19 | . 27 22 21 . Energy Cannon 2 | . . . . 17 Naked Turns . | . . . . . Heaviest Build 60 | 13 17 52 52 60 Greatest Support 59 | 20 20 52 52 59 Greatest Overweight (x) 1 | . . . . 1 Average Overweight (x) . | . . . . . Largest Inventory Capacity 20 | 8 8 20 20 20 Average Capacity 17 | 7 8 18 20 20 Most Carried 20 | 5 8 18 20 19 Average Carried 15 | 2 7 12 19 15 Final Capacity 20 | 8 8 20 20 20 Final Carried 20 | 3 8 18 20 17 Class Distribution -------------------- 100% | Mutant Dominant Class ---------------- Mutant | -10/Materials Mutant | -9/Materials Mutant | -9/Storage Mutant | -8/Materials Resources | -11 -10 -9 -9 -8 ----------- Run | Yrd Mat Mat Sto Mat Matter Collected 659 | 260 37 80 175 107 Remotely . | . . . . . Salvage Created 879 | . 48 86 364 381 Parts 54 | . 7 7 13 27 Haulers Intercepted 7 | . . 1 5 1 Recyclers Shooed 1 | . . . 1 . Parts Field Recycled . | . . . . . Retrieved Matter . | . . . . . Parts Self-Destructed . | . . . . . Prevented . | . . . . . Kills | -11 -10 -9 -9 -8 ------- Run | Yrd Mat Mat Sto Mat Combat Hostiles Destroyed 12 | . 1 1 3 7 Guns 5 | . 1 1 3 . Cannons 7 | . . . . 7 Classes Destroyed 8 | . 2 2 2 2 Worker 2 | . . . 1 1 Hauler 7 | . . 1 5 1 Recycler 1 | . . . . 1 Watcher 2 | . 1 . . 1 Swarmer 4 | . . . . 4 Grunt 5 | . 1 . 2 2 Brawler 1 | . . . 1 . Sentry 2 | . . 1 . 1 Best Kill Streak 5 | . 1 1 3 5 Combat Bots Only 4 | . 1 1 3 4 Max Kills in Single Turn 2 | . 1 1 2 1 Gunslinging . | . . . . . Exploded . | . . . . . Melee . | . . . . . Uniques/NPCs Destroyed . | . . . . . Combat | -11 -10 -9 -9 -8 -------- Run | Yrd Mat Mat Sto Mat Hostile Shots Fired 133 | . 3 16 24 90 Missed 39 | . 2 5 10 22 Damage Taken 1089 | . 12 168 239 670 Core 186 | . . 52 47 87 Absorbed by Shields . | . . . . . Regen/Repaired (Parts) 51 | . . . 51 . Core Remaining (%) 91 | 100 100 . 75 . Volleys Fired 63 | . 5 5 25 28 Largest 2 | . 2 2 2 2 Hottest 136 | . 130 130 130 136 Shots Fired 127 | . 10 10 51 56 Gun 71 | . 10 10 51 . Cannon 56 | . . . . 56 Launcher . | . . . . . Special . | . . . . . Kinetic . | . . . . . Thermal 109 | . 10 10 33 56 Explosive . | . . . . . Electromagnetic 18 | . . . 18 . Robot Hit Streak 16 | . 7 7 16 11 Robot Miss Streak 5 | . 4 3 5 5 Penetration Max . | . . . . . Secondary Targets 1 | . . . 1 . Max Gunslinging Chain 1 | . . . 1 . Shots Hit Robots 84 | . 7 5 42 30 Core Hits 72 | . 10 9 37 16 Critical Kills 1 | . . . . 1 Critical Parts Destroyed . | . . . . . Critical Strikes 1 | . . . . 1 Meltdown 1 | . . . . 1 Melee Attacks . | . . . . . Impact . | . . . . . Slashing . | . . . . . Piercing . | . . . . . Sneak Attacks . | . . . . . Combat Hostiles . | . . . . . Follow-up Attacks . | . . . . . Damage Inflicted 1647 | . 116 69 783 679 Guns 865 | . 116 69 680 . Cannons 679 | . . . . 679 Explosions 103 | . . . 103 . Melee . | . . . . . Ramming . | . . . . . Kinetic . | . . . . . Thermal 1416 | . 116 69 552 679 Explosive . | . . . . . Electromagnetic 231 | . . . 231 . Impact . | . . . . . Slashing . | . . . . . Piercing . | . . . . . Highest Corruption 3 | . 2 . 3 . Average Corruption 2 | . 2 . 2 . Corruption Purged . | . . . . . Corruption Blocked . | . . . . . Effects 11 | . 1 . 10 . Matter Fused 2 | . 1 . 1 . Heat Flow Errors 3 | . . . 3 . Energy Discharges 3 | . . . 3 . Data Loss (minor) 2 | . . . 2 . Misfires 1 | . . . 1 . Overload Shots . | . . . . . Overflow Damage . | . . . . . Projectiles . | . . . . . Explosions . | . . . . . Melee . | . . . . . Knockbacks . | . . . . . Impact . | . . . . . Kinetic . | . . . . . Secondary . | . . . . . Self-Inflicted Damage 79 | . . . 79 . Shots 2 | . . . 2 . Rammed . | . . . . . Targets Rammed . | . . . . . Kicked . | . . . . . Crushed . | . . . . . Highest Temperature 255 | . 84 138 255 45 Average Temperature 45 | . 39 63 60 17 Received Heat Transfer 195 | . 6 45 18 126 Siege Activations . | . . . . . Robots Corrupted . | . . . . . Combat Hostiles . | . . . . . Parts Fried 3 | . . . 3 . Impact Corruptions . | . . . . . Robots Melted 1 | . . . . 1 Combat Hostiles . | . . . . . Parts Melted 2 | . . . . 2 Heat Transferred 2195 | . 140 90 744 1221 Parts Sabotaged . | . . . . . Parts Stolen . | . . . . . Parts Stripped . | . . . . . Power Chain Reactions 2 | . . . 2 . Alert | -11 -10 -9 -9 -8 ------- Run | Yrd Mat Mat Sto Mat Peak Influence 485 | . 67 99 485 449 Initial 204 | . . 27 41 204 Average 137 | . 15 45 161 313 Maximum Alert Level 2 | . . . 2 2 Low Security (%) 74 | 100 100 100 76 . Level 1 16 | . . . 11 77 Level 2 9 | . . . 12 22 Level 3 . | . . . . . Level 4 . | . . . . . Level 5 . | . . . . . High Security . | . . . . . Max Security . | . . . . . Squads Dispatched 2 | . 1 . 1 . Investigation 1 | . . . 1 . Extermination . | . . . . . Reinforcement 1 | . 1 . . . Assault . | . . . . . Garrison . | . . . . . Intercept . | . . . . . Searches Triggered . | . . . . . Construction Impeded . | . . . . . Haulers Reinforced . | . . . . . Active Scanning Responses . | . . . . . Cargo Convoy Interrupts . | . . . . . Stealth | -11 -10 -9 -9 -8 --------- Run | Yrd Mat Mat Sto Mat Distress Signals 4 | . . . 1 3 Communications Jammed . | . . . . . Distress Signals . | . . . . . Times Spotted 44 | . 4 2 23 15 Peak Tracking Total 8 | . 1 1 3 8 Tactical Retreats 2 | . . . 1 1 Traps | -11 -10 -9 -9 -8 ------- Run | Yrd Mat Mat Sto Mat Traps Triggered 3 | . 1 . 2 . Indirectly . | . . . . . Trap Hack Attempts . | . . . . . Triggered . | . . . . . Disarmed . | . . . . . Reprogrammed . | . . . . . Reused . | . . . . . Traps Extracted . | . . . . . Installed . | . . . . . Triggered . | . . . . . Machines | -11 -10 -9 -9 -8 ---------- Run | Yrd Mat Mat Sto Mat Machines Disabled 2 | . . . 2 . Max in Single Turn 1 | . . . 1 . Garrison Access 1 | . . . 1 . Machines Repaired . | . . . . . Machines Dismantled . | . . . . . Machines Sabotaged . | . . . . . Overloaded Fab Kills . | . . . . . Hacking | -11 -10 -9 -9 -8 --------- Run | Yrd Mat Mat Sto Mat Machines Accessed 6 | . . 1 5 . Terminals 4 | . . 1 3 . Fabricators . | . . . . . Repair Stations 1 | . . . 1 . Recycling Units . | . . . . . Scanalyzers . | . . . . . Garrison Access 1 | . . . 1 . Total Hacks 17 | . . 4 13 . Successful 7 | . . 1 6 . Failed 10 | . . 3 7 . Catastrophic 1 | . . . 1 . Database Lockouts . | . . . . . Manual . | . . . . . Terminals 12 | . . 4 8 . Fabricators . | . . . . . Repair Stations 2 | . . . 2 . Recycling Units . | . . . . . Scanalyzers . | . . . . . Garrison Access 3 | . . . 3 . Terminal Hacks 4 | . . 1 3 . Open Door 1 | . . . 1 . Reinforcement Status 1 | . . . 1 . Assault Status 1 | . . . 1 . Hauler Manifests 1 | . . 1 . . Fabricator Hacks . | . . . . . Repair Station Hacks 2 | . . . 2 . Scan Component 1 | . . . 1 . Repair 1 | . . . 1 . Recycling Unit Hacks . | . . . . . Scanalyzer . | . . . . . Garrison Access Hacks 1 | . . . 1 . Seal Access 1 | . . . 1 . Unauthorized Hacks . | . . . . . Terminals . | . . . . . Fabricators . | . . . . . Repair Stations . | . . . . . Recycling Units . | . . . . . Scanalyzers . | . . . . . Garrison Access . | . . . . . Data Cores Recovered 1 | . . . 1 . Used . | . . . . . Hacking Detections 4 | . . 1 3 . Full Trace Events . | . . . . . Feedback Events . | . . . . . Feedback Blocked . | . . . . . Robot Schematics Acquired . | . . . . . Robots Built . | . . . . . Authchips . | . . . . . Time . | . . . . . Total Robot Build Rating . | . . . . . Part Schematics Acquired . | . . . . . Parts Built . | . . . . . Authchips . | . . . . . Time . | . . . . . Total Part Build Rating . | . . . . . Parts Repaired 1 | . . . 1 . Time 32 | . . . 32 . Parts Recycled . | . . . . . Recycled Matter . | . . . . . Retrieved Matter . | . . . . . Retrieved Components . | . . . . . Parts Scanalyzed . | . . . . . Part Schematics Acquired . | . . . . . Parts Damaged . | . . . . . Bothacking | -11 -10 -9 -9 -8 ------------ Run | Yrd Mat Mat Sto Mat Used RIF Installer . | . . . . . Robots Hacked . | . . . . . Non-combat . | . . . . . Combat . | . . . . . Robot Hacks Applied . | . . . . . Relay Couplers Released . | . . . . . Fabnet Peak Effective % . | . . . . . Robots Rewired . | . . . . . Allies Hacked . | . . . . . Hacks Repelled . | . . . . . Allies | -11 -10 -9 -9 -8 -------- Run | Yrd Mat Mat Sto Mat Total Allies 2 | . . . 2 . Largest Group 2 | . . . 2 1 Highest-Rated Group 115 | . . . 115 95 Highest-Rated Ally 100 | . . . 100 95 Total Orders . | . . . . . Ally Attacks 35 | . . . 35 . Total Damage 961 | . . . 961 . Kills 16 | . . . 16 . Allies Corrupted . | . . . . . Allies Melted . | . . . . . Intel | -11 -10 -9 -9 -8 ------- Run | Yrd Mat Mat Sto Mat Robot Analysis Total . | . . . . . Derelict Logs Recovered . | . . . . . Drone Launches . | . . . . . Drone Recoveries . | . . . . . Exploration | -11 -10 -9 -9 -8 ------------- Run | Yrd Mat Mat Sto Mat Turns Passed 1431 | 69 198 208 762 194 Spaces Moved 878 | 56 142 142 484 54 Core 18 | 18 . . . . Treads . | . . . . . Legs 860 | 38 142 142 484 54 Wheels . | . . . . . Hover . | . . . . . Flight . | . . . . . Fastest Speed 50 | 50 120 120 120 120 Average Speed 119 | 97 120 120 120 142 Slowest Speed 190 | 120 120 120 120 190 Overloaded Moves . | . . . . . Propulsion Burnouts . | . . . . . Robots Hopped . | . . . . . Cave-ins Triggered . | . . . . . Exploration Rate (%) 25 | 4 36 15 64 8 Regions Visited 4 Branch Regions 1 Pre-discovered Areas . | . . . . . Known Exits Taken . | . . . . . Unknown Exits Taken 4 | 1 1 1 1 . Scrap Searched . | . . . . . Spaces Dug . | . . . . . Terrain Destroyed 11 | . . . 11 . Melee . | . . . . . Projectile . | . . . . . AOE 11 | . . . 11 . Terrain Rammed . | . . . . . Walls Destroyed . | . . . . . Machines Disabled . | . . . . . Actions | -11 -10 -9 -9 -8 --------- Run | Yrd Mat Mat Sto Mat Total 1124 | 70 160 166 617 111 Wait 63 | . . . 54 9 Move 874 | 55 141 141 483 54 Hop . | . . . . . Pick Up 47 | 9 7 12 17 2 Fast Attach 9 | . 3 . 6 . Attach 14 | 6 . 2 3 3 Detach 1 | . . . . 1 Swap 26 | . . 6 9 11 Drop 27 | . 4 . 20 3 Fire 63 | . 5 5 25 28 Melee . | . . . . . Ram . | . . . . . Kick . | . . . . . Crush . | . . . . . Escape Stasis . | . . . . . Rewire . | . . . . . Trap . | . . . . . Miscellaneous . | . . . . . Route ------- -11/Scrapyard -10/Materials (discovered 2 exits: *Mat x2) -9/Materials -9/Storage -8/Materials History --------- Turn | Location | Event 4 | -11/Scrapyard | Discovered new exit (range 16) 70 | -11/Scrapyard | Entered Materials 168 | -10/Materials | Discovered new exit (range 16) 254 | -10/Materials | Discovered new exit (range 7) 268 | -10/Materials | Entered another Materials area 268 | -9/Materials | Evolved 2 slots: Propulsion x2 318 | -9/Materials | Build established: Mutant 414 | -9/Materials | Discovered new exit (range 15) 476 | -9/Materials | Entered Storage 580 | -9/Storage | Met 01-MTF 1174 | -9/Storage | Repaired Imp. Aluminum Leg 1223 | -9/Storage | Discovered new exit (range 9) 1238 | -9/Storage | Entered Materials 1238 | -8/Materials | Accompanied by 1 ally (01-MTF) 1238 | -8/Materials | Evolved 2 slots: Propulsion x1, Utility x1 1243 | -8/Materials | 01-MTF left 1432 | -8/Materials | Self-destructed Last Messages --------------- 01371_ G-47 Trooper destroyed. 01375_ R-06 Scavenger collects Particle Gun. 01380_ A-02 Transporter destroyed. 01381_ W-25 Informer sends out distress signal. 01387_ Acquired Imp. Ion Engine. 01389_ S-10 Pest destroyed. 01398_ R-06 Scavenger destroyed. 01403_ Acquired 46 matter. 01409_ W-25 Informer sends out distress signal. 01412_ Slug penetrates Wall. 01414_ R-06 Scavenger collects Com. Wheel. 01415_ Penetrated by Slug. 01416_ M-13 Machinist repairs Imp. Hover Unit. 01418_ R-06 Scavenger collects Com. Wheel. 01418_ Penetrated by Slug. 01425_ R-06 Scavenger collects Lgt. Ion Engine. 01429_ R-06 Scavenger collects Wheel. 01429_ U-05 Engineer builds a Door. 01431_ Adv. Beam Cannon destroyed. 01431_ M-13 Machinist repairs H-55 Commando. Map ----- +----------------------------------------------------+ | ?????????????????????????????????????????????????? | | ?????????????????????????????????????????????????? | | ?????????????????????????????????????????????????? | | ?????????????????????????????????????????????????? | | ?????????????????????????????????????????????????? | | ?????????????????????????????????????????????????? | | ?????????????????????????????????????????????????? | | ?????????????????????????????????????????????????? | | ?????????????????????????????????????????????????? | | ?????????????????????????????????????????????????? | | ?????????????????????????????????????????????????? | | ?????????????????????????????????????????????????? | | ?????????????????? ?????????????????????????????? | | ????????????# ?? #????????????????????????????? | | ????????????# ??" #??????+?????????????????????? | | ????????????# """ #?????# #????????????????????? | | ????????????# """ #?????# #????????????????????? | | ????????????# ? #?#####+##???????????????????? | | ????????????# #?# #???????????????????? | | ????????????# """ #?# ! "" #???????????????????? | | ????????????# """ #?# T" #???????????????????? | | ????????????# """ #?# "" #???????????????????? | | ????????????# #?# [ #???????????????????? | | ????????????# ^ #?# = * #???????????????????? | | ??????####### ==######+########## ! ???????? | | ?????"""""" # !%*%[[!%@%u ???????? | | ????""""""" # =**[[[ % r hm ???????? | | ??? """"""" # =[ [ * % % ! ???????? | | ??# """"""" + ##################### ???????? | | ??# """"""" # #????????????????????????????????? | | ??# # #????????????????????????????????? | | ??# # #?######?????????????????????????? | | ??# # #? !#?????????????????????????? | | ??########### # """ #?????????????????????????? | | ????????????# # """ #?????????????????????????? | | ????????????# + """ #?????????????????????????? | | ????????????# # #?????????????????????????? | | ????????????# # ] #?????????????????????????? | | ????????##### #?######?????????????????????????? | | ????????# #????????????????????????????????? | | ????????#[= #????????????????????????????????? | | ????????# [ #????????????????????????????????? | | ????????#########????????????????????????????????? | | ?????????????????????????????????????????????????? | | ?????????????????????????????????????????????????? | | ?????????????????????????????????????????????????? | | ?????????????????????????????????????????????????? | | ?????????????????????????????????????????????????? | | ?????????????????????????????????????????????????? | | ?????????????????????????????????????????????????? | +----------------------------------------------------+ Best States ------------- Heat Dissipation 63 Energy Generation 12 Energy Capacity 265 Matter Stores 300 Matter Capacity 300 Sight Range 16 Terrain Scan Density 10 Armor Coverage 150 Evasion (%) 55 Item Schematics ----------------- None Robot Schematics ------------------ None Fabricated ------------ Nothing Alien Tech Used ----------------- None Achievements -------------- None Challenges ------------ None Game ------ Seed FlakSuperchargedPit Manual? 0 Play Time 00:16:37 Cumulative 33.2 hours Start 2024.06.08 @ 02:41:37 End 2024.07.08 @ 16:19:06 Sessions 3 Manual Loads 0 Difficulty Rogue Special Mode None Game No. 52 Rogue 52 Adventurer 0 Explorer 0 Win Type - Total 0 Types 0/0/0/0/0/0/0/0/0 Lore% 21 Gallery% 33 Achievement% 23 Wizard Run 0 Options --------- Layout 1 ASCII 0 Keyboard 0 Movement Mouse Keybinds 0 Fullscreen 2 Font 24/Smallcaps Map View 50x35 Zoom Use 0% Tactical HUD 1 Map Filters NONE Filters NONE Steam 1 RUN: e2bf1261-e6b5-4d5c-a42e-c4144443bce7